[Event "17th Memorial Lezcano Montalvo 2025"]
[Site "Gran Canaria"]
[Date "2025.04.15"]
[Round "4.23"]
[White "Ludishev, Artem"]
[Black "Garcia Brion, Eduardo"]
[Result "1/2-1/2"]
[Annotator "RC"]
[ECO "B15"]
[WhiteElo "1874"]
[BlackElo "2171"]
[PlyCount "115"]
[EventDate "2025.04.13"]
[EventType "swiss"]
[EventCountry "ESP"]
[SourceTitle "playchess.com"]
[Source "ChessBase"]
[SourceQuality "1"]
[TimeControl "5400+30"]

1. e4 {[%emt 0:04:16]} c6 {[%emt 0:00:06]} 2. d4 {[%emt 0:00:05]} d5 {[%emt 0:00:14]} 3. f3 {[%emt 0:00:05]} g6 {[%emt 0:00:07]} 4. Nc3 {[%emt 0:00:05]} Bg7 {[%emt 0:00:07]} 5. Be3 {[%emt 0:00:39]} dxe4 {[%emt 0:01:08]} 6. fxe4 {[%emt 0:00:09]} Nf6 {[%emt 0:00:05]} 7. Nf3 {[%emt 0:13:27]} O-O {[%emt 0:00:22]} 8. h3 {[%emt 0:07:47]} b5 {[%emt 0:03:56]} 9. Bd3 {[%emt 0:07:53]} Bb7 {[%emt 0:00:35]} 10. Qd2 {[%emt 0:01:43]} Nbd7 {[%emt 0:10:41]} 11. e5 {[%emt 0:03:13]} b4 {[%emt 0:00:49]} 12. exf6 {[%emt 0:12:15]} bxc3 {[%emt 0:00:06]} 13. bxc3 {[%emt 0:00:03]} Nxf6 {[%emt 0:03:43]} 14. Rb1 {[%emt 0:00:10]} Qc8 {[%emt 0:00:15]} 15. O-O {[%emt 0:03:34]} c5 {[%emt 0:01:57]} 16. Rb5 {[%emt 0:09:15]} cxd4 {[%emt 0:06:55]} 17. cxd4 {[%emt 0:00:39]} Ne4 {[%emt 0:01:44]} 18. Qa5 {[%emt 0:02:09]} Nd6 {[%emt 0:01:24]} 19. Rc5 {[%emt 0:03:27]} Qe6 {[%emt 0:01:46]} 20. Ne5 {[%emt 0:04:41]} Rfc8 {[%emt 0:14:02]} 21. Rxc8+ {[%emt 0:07:22]} Rxc8 {[%emt 0:00:07]} 22. Re1 {[%emt 0:06:23]} Ra8 {[%emt 0:19:33]} 23. c4 {[%emt 0:02:50]} Nf5 {[%emt 0:03:18]} 24. Bf2 {[%emt 0:00:47]} Qd6 {[%emt 0:01:02]} 25. c5 {[%emt 0:01:26]} Qd8 {[%emt 0:05:59]} 26. Qxd8+ {[%emt 0:01:07]} Rxd8 {[%emt 0:00:04]} 27. c6 {[%emt 0:01:40]} Bc8 {[%emt 0:02:21]} 28. Bc4 {[%emt 0:01:22]} e6 {[%emt 0:00:29]} 29. c7 {[%emt 0:02:26]} Re8 {[%emt 0:00:19]} 30. Nc6 {[%emt 0:02:40]} Bb7 {[%emt 0:00:31]} 31. Nxa7 {[%emt 0:00:14]} Nd6 {[%emt 0:01:12]} 32. Bd3 {[%emt 0:00:38]} Ra8 {[%emt 0:00:19]} 33. Nb5 {[%emt 0:00:10]} Nc8 {[%emt 0:00:31]} 34. Bc4 {[%emt 0:00:32]} Kf8 {[%emt 0:00:16]} 35. Bg3 {[%emt 0:00:55]} Ra4 {[%emt 0:00:14]} 36. Bb3 {[%emt 0:01:25]} Bxd4+ {[%emt 0:00:06]} 37. Kh2 {[%emt 0:00:27]} Rb4 {[%emt 0:00:06]} 38. Rd1 {[%emt 0:00:46]} Bb6 {[%emt 0:00:21]} 39. Nd6 {[%emt 0:00:34]} Bxc7 {[%emt 0:00:23]} 40. Nxc8 {[%emt 0:00:26]} Bxg3+ {[%emt 0:01:03]} 41. Kxg3 {[%emt 0:00:01]} h5 {[%emt 0:00:25]} 42. Nd6 {[%emt 0:00:40]} h4+ {[%emt 0:01:01]} 43. Kh2 {[%emt 0:00:01]} Ba6 {[%emt 0:00:17]} 44. Nc4 {[%emt 0:01:03]} Bxc4 {[%emt 0:00:14]} 45. Rd4 {[%emt 0:00:04]} Bxb3 {[%emt 0:00:05]} 46. Rxb4 {[%emt 0:00:05]} Bxa2 {[%emt 0:00:03]} 47. Rxh4 {[%emt 0:00:09]} Kg7 {[%emt 0:00:15]} 48. Ra4 {[%emt 0:00:20]} Bd5 {[%emt 0:00:09]} 49. h4 {[%emt 0:01:39]} f5 {[%emt 0:01:04]} 50. Kg3 {[%emt 0:00:53]} Kf6 {[%emt 0:01:06]} 51. Ra6 {[%emt 0:00:20]} g5 {[%emt 0:00:55]} 52. hxg5+ {[%emt 0:00:30]} Kxg5 {[%emt 0:00:05]} 53. Ra4 {[%emt 0:00:12]} Be4 {[%emt 0:00:35]} 54. Kf2 {[%emt 0:00:19]} Bd5 {[%emt 0:00:27]} 55. g3 {[%emt 0:00:17]} Be4 {[%emt 0:00:05]} 56. Rb4 {[%emt 0:00:27]} Bd5 {[%emt 0:00:27]} 57. Ke3 {[%emt 0:00:24]} Be4 {[%emt 0:00:29]} 58. Ra4 {[%emt 0:00:38]} 1/2-1/2

[Event "17th Memorial Lezcano Montalvo 2025"]
[Site "Gran Canaria"]
[Date "2025.04.15"]
[Round "4.24"]
[White "Marrero Cardenes, Agustin"]
[Black "Ramos Santana, Marcelino"]
[Result "1-0"]
[Annotator "RC"]
[ECO "A85"]
[WhiteElo "2163"]
[BlackElo "1903"]
[PlyCount "45"]
[EventDate "2025.04.13"]
[EventType "swiss"]
[EventCountry "ESP"]
[SourceTitle "playchess.com"]
[Source "ChessBase"]
[SourceQuality "1"]
[TimeControl "5400+30"]

1. d4 {[%emt 0:00:03]} f5 {[%emt 0:00:22]} 2. c4 {[%emt 0:00:22]} e6 {[%emt 0:02:12]} 3. Nc3 {[%emt 0:00:11]} Nf6 {[%emt 0:00:09]} 4. e3 {[%emt 0:03:30]} Bb4 {[%emt 0:03:38]} 5. Bd2 {[%emt 0:00:57]} O-O {[%emt 0:01:00]} 6. Bd3 {[%emt 0:02:46]} Nc6 {[%emt 0:05:04]} 7. Nge2 {[%emt 0:04:20]} b6 {[%emt 0:01:47]} 8. Qc2 {[%emt 0:10:43]} Bb7 {[%emt 0:04:14]} 9. O-O {[%emt 0:07:16]} Qe8 {[%emt 0:04:58]} 10. f3 {[%emt 0:03:29]} Ne7 {[%emt 0:09:53]} 11. e4 {[%emt 0:06:53]} g6 {[%emt 0:13:40]} 12. Bh6 {[%emt 0:03:10]} Rf7 {[%emt 0:01:36]} 13. Nb5 {[%emt 0:00:31]} Qd8 {[%emt 0:02:21]} 14. a3 {[%emt 0:00:25]} a6 {[%emt 0:00:18]} 15. Nxc7 {[%emt 0:00:56]} Qxc7 {[%emt 0:06:43]} 16. axb4 {[%emt 0:00:48]} Kh8 {[%emt 0:00:08]} 17. Bf4 {[%emt 0:01:42]} Qd8 {[%emt 0:00:37]} 18. d5 {[%emt 0:01:00]} Rc8 {[%emt 0:02:14]} 19. Qc3 {[%emt 0:05:17]} Kg8 {[%emt 0:01:26]} 20. Qd4 {[%emt 0:06:13]} Nh5 {[%emt 0:11:33]} 21. Bg5 {[%emt 0:03:02]} h6 {[%emt 0:01:03]} 22. Bxh6 {[%emt 0:04:00]} Rh7 {[%emt 0:00:07]} 23. Bg5 {[%emt 0:00:41]} 1-0

[Event "17th Memorial Lezcano Montalvo 2025"]
[Site "Gran Canaria"]
[Date "2025.04.15"]
[Round "4.25"]
[White "Henriquez Garcia, David"]
[Black "Garcia Padron, Juan"]
[Result "1-0"]
[Annotator "RC"]
[ECO "A07"]
[WhiteElo "1869"]
[BlackElo "2155"]
[PlyCount "123"]
[EventDate "2025.04.13"]
[EventType "swiss"]
[EventCountry "ESP"]
[SourceTitle "playchess.com"]
[Source "ChessBase"]
[SourceQuality "1"]
[TimeControl "5400+30"]

1. Nf3 {[%emt 0:00:03]} d5 {[%emt 0:04:24]} 2. g3 {[%emt 0:00:37]} Bg4 {[%emt 0:00:19]} 3. Bg2 {[%emt 0:01:02]} Nd7 {[%emt 0:00:08]} 4. c4 {[%emt 0:00:22]} e6 {[%emt 0:04:39]} 5. cxd5 {[%emt 0:07:25]} exd5 {[%emt 0:00:02]} 6. O-O {[%emt 0:03:47]} c6 {[%emt 0:01:48]} 7. d4 {[%emt 0:02:31]} Ngf6 {[%emt 0:04:53]} 8. Nc3 {[%emt 0:01:30]} Bd6 {[%emt 0:00:49]} 9. Qc2 {[%emt 0:02:17]} O-O {[%emt 0:00:09]} 10. Nh4 {[%emt 0:00:33]} Qb6 {[%emt 0:03:46]} 11. Be3 {[%emt 0:05:08]} Rfe8 {[%emt 0:00:07]} 12. Rad1 {[%emt 0:06:01]} Bb4 {[%emt 0:01:54]} 13. a3 {[%emt 0:03:55]} Bxc3 {[%emt 0:02:19]} 14. bxc3 {[%emt 0:00:59]} Qa6 {[%emt 0:00:02]} 15. Rd3 {[%emt 0:06:45]} Bh5 {[%emt 0:10:11]} 16. f3 {[%emt 0:01:49]} Bg6 {[%emt 0:08:07]} 17. Nxg6 {[%emt 0:00:30]} hxg6 {[%emt 0:00:02]} 18. Bc1 {[%emt 0:04:47]} Rac8 {[%emt 0:01:05]} 19. Re1 {[%emt 0:07:45]} c5 {[%emt 0:00:20]} 20. e4 {[%emt 0:06:03]} cxd4 {[%emt 0:00:13]} 21. Rxd4 {[%emt 0:00:03]} dxe4 {[%emt 0:12:03]} 22. fxe4 {[%emt 0:01:39]} Ne5 {[%emt 0:00:34]} 23. Red1 {[%emt 0:08:47]} Qe6 {[%emt 0:07:47]} 24. h3 {[%emt 0:01:00]} b6 {[%emt 0:00:25]} 25. g4 {[%emt 0:05:45]} Kh7 {[%emt 0:01:29]} 26. Bf4 {[%emt 0:03:26]} Rc5 {[%emt 0:00:50]} 27. Rd6 {[%emt 0:08:22]} Qc8 {[%emt 0:00:21]} 28. Qf2 {[%emt 0:01:47]} Kg8 {[%emt 0:01:15]} 29. g5 {[%emt 0:01:19]} Nfd7 {[%emt 0:00:36]} 30. Qd4 {[%emt 0:01:55]} Nf8 {[%emt 0:00:47]} 31. Rd8 {[%emt 0:01:11]} Rxd8 {[%emt 0:05:30]} 32. Qxd8 {[%emt 0:00:02]} Qxd8 {[%emt 0:04:05]} 33. Rxd8 {[%emt 0:00:23]} f6 {[%emt 0:00:04]} 34. gxf6 {[%emt 0:01:11]} gxf6 {[%emt 0:00:03]} 35. Bh6 {[%emt 0:00:22]} Ned7 {[%emt 0:00:12]} 36. c4 {[%emt 0:01:01]} Re5 {[%emt 0:02:46]} 37. Ra8 {[%emt 0:01:20]} a5 {[%emt 0:02:03]} 38. Kf2 {[%emt 0:01:04]} Kf7 {[%emt 0:00:11]} 39. Ke3 {[%emt 0:01:05]} Ne6 {[%emt 0:00:16]} 40. Bf4 {[%emt 0:00:25]} Nxf4 {[%emt 0:00:24]} 41. Kxf4 {[%emt 0:00:05]} g5+ {[%emt 0:00:09]} 42. Ke3 {[%emt 0:00:10]} Ke7 {[%emt 0:00:08]} 43. Kd4 {[%emt 0:00:27]} Kd6 {[%emt 0:00:58]} 44. Bf3 {[%emt 0:00:52]} Rc5 {[%emt 0:04:42]} 45. Rd8 {[%emt 0:00:36]} Ke7 {[%emt 0:00:16]} 46. Rh8 {[%emt 0:00:12]} Ne5 {[%emt 0:00:21]} 47. Be2 {[%emt 0:00:27]} Nc6+ {[%emt 0:01:30]} 48. Ke3 {[%emt 0:00:45]} Re5 {[%emt 0:03:34]} 49. Bg4 {[%emt 0:00:39]} b5 {[%emt 0:01:56]} 50. Rh7+ {[%emt 0:00:50]} Kf8 {[%emt 0:03:18]} 51. Bd7 {[%emt 0:00:26]} Kg8 {[%emt 0:00:27]} 52. Bxc6 {[%emt 0:01:04]} Kxh7 {[%emt 0:00:08]} 53. cxb5 {[%emt 0:00:03]} Rc5 {[%emt 0:02:38]} 54. Kd4 {[%emt 0:00:10]} Rc1 {[%emt 0:00:07]} 55. Kd5 {[%emt 0:01:09]} Ra1 {[%emt 0:01:49]} 56. b6 {[%emt 0:01:08]} Rxa3 {[%emt 0:00:06]} 57. Kc4 {[%emt 0:00:28]} Ra1 {[%emt 0:00:30]} 58. b7 {[%emt 0:00:31]} Rc1+ {[%emt 0:00:09]} 59. Kb5 {[%emt 0:00:30]} Rb1+ {[%emt 0:00:11]} 60. Kxa5 {[%emt 0:00:12]} Rxb7 {[%emt 0:01:15]} 61. Bxb7 {[%emt 0:00:04]} Kg6 {[%emt 0:00:22]} 62. Bc8 {[%emt 0:00:07]} 1-0

[Event "17th Memorial Lezcano Montalvo 2025"]
[Site "Gran Canaria"]
[Date "2025.04.15"]
[Round "4.26"]
[White "Bethencourt Hernandez, Alberto"]
[Black "Garcia Rodriguez, Adriana"]
[Result "1-0"]
[Annotator "RC"]
[ECO "C14"]
[WhiteElo "2122"]
[BlackElo "1893"]
[PlyCount "67"]
[EventDate "2025.04.13"]
[EventType "swiss"]
[EventCountry "ESP"]
[SourceTitle "playchess.com"]
[Source "ChessBase"]
[SourceQuality "1"]
[TimeControl "5400+30"]

1. e4 {[%emt 0:00:04]} e6 {[%emt 0:00:21]} 2. d4 {[%emt 0:00:21]} d5 {[%emt 0:00:17]} 3. Nc3 {[%emt 0:00:20]} Nf6 {[%emt 0:00:22]} 4. Bg5 {[%emt 0:00:51]} Be7 {[%emt 0:00:34]} 5. e5 {[%emt 0:00:33]} Nfd7 {[%emt 0:00:31]} 6. h4 {[%emt 0:00:37]} h6 {[%emt 0:00:38]} 7. Bxe7 {[%emt 0:00:44]} Qxe7 {[%emt 0:00:25]} 8. f4 {[%emt 0:04:27]} a6 {[%emt 0:01:23]} 9. Qg4 {[%emt 0:03:38]} O-O {[%emt 0:00:54]} 10. O-O-O {[%emt 0:02:53]} b5 {[%emt 0:07:17]} 11. Qh5 {[%emt 0:04:34]} f6 {[%emt 0:11:38]} 12. Bd3 {[%emt 0:04:02]} c5 {[%emt 0:07:24]} 13. Qg6 {[%emt 0:07:15]} f5 {[%emt 0:00:46]} 14. g4 {[%emt 0:01:15]} c4 {[%emt 0:05:49]} 15. Nxd5 {[%emt 0:17:27]} exd5 {[%emt 0:13:15]} 16. Bxf5 {[%emt 0:00:06]} Rxf5 {[%emt 0:00:43]} 17. gxf5 {[%emt 0:00:08]} Nf8 {[%emt 0:07:02]} 18. Qg2 {[%emt 0:03:11]} Kh7 {[%emt 0:06:35]} 19. e6 {[%emt 0:12:07]} a5 {[%emt 0:07:55]} 20. Nf3 {[%emt 0:01:36]} a4 {[%emt 0:06:37]} 21. Rdg1 {[%emt 0:01:13]} a3 {[%emt 0:01:34]} 22. Ng5+ {[%emt 0:00:28]} Kg8 {[%emt 0:00:48]} 23. Nf7 {[%emt 0:00:09]} axb2+ {[%emt 0:00:27]} 24. Kb1 {[%emt 0:00:05]} Qf6 {[%emt 0:00:19]} 25. Qxd5 {[%emt 0:02:04]} Ra5 {[%emt 0:02:53]} 26. Nd6 {[%emt 0:06:26]} Bxe6 {[%emt 0:02:52]} 27. fxe6 {[%emt 0:00:06]} Qxe6 {[%emt 0:00:07]} 28. Qxe6+ {[%emt 0:00:55]} Nxe6 {[%emt 0:00:01]} 29. f5 {[%emt 0:00:09]} Nxd4 {[%emt 0:00:47]} 30. f6 {[%emt 0:00:49]} Ra7 {[%emt 0:00:30]} 31. f7+ {[%emt 0:00:29]} Kf8 {[%emt 0:00:06]} 32. Re1 {[%emt 0:00:08]} Re7 {[%emt 0:00:20]} 33. Rxe7 {[%emt 0:00:06]} Kxe7 {[%emt 0:00:01]} 34. Re1+ {[%emt 0:00:07]} 1-0

[Event "17th Memorial Lezcano Montalvo 2025"]
[Site "Gran Canaria"]
[Date "2025.04.15"]
[Round "4.27"]
[White "Ramirez Maillo, Cristian"]
[Black "Alonso Perez, Alfredo"]
[Result "1-0"]
[Annotator "RC"]
[ECO "C42"]
[WhiteElo "2106"]
[BlackElo "1853"]
[PlyCount "74"]
[EventDate "2025.04.13"]
[EventType "swiss"]
[EventCountry "ESP"]
[SourceTitle "playchess.com"]
[Source "ChessBase"]
[SourceQuality "1"]
[TimeControl "5400+30"]

1. e4 {[%emt 0:00:01]} e5 {[%emt 0:00:17]} 2. Nf3 {[%emt 0:00:05]} Nf6 {[%emt 0:00:07]} 3. Nxe5 {[%emt 0:00:30]} d6 {[%emt 0:00:08]} 4. Nf3 {[%emt 0:00:07]} Nxe4 {[%emt 0:00:20]} 5. Nc3 {[%emt 0:00:09]} Nf6 {[%emt 0:00:12]} 6. d4 {[%emt 0:00:14]} Be7 {[%emt 0:00:18]} 7. Bd3 {[%emt 0:00:31]} O-O {[%emt 0:01:05]} 8. Be3 {[%emt 0:02:04]} Re8 {[%emt 0:02:46]} 9. Qd2 {[%emt 0:00:18]} c6 {[%emt 0:04:07]} 10. O-O-O {[%emt 0:00:38]} b5 {[%emt 0:02:58]} 11. Kb1 {[%emt 0:00:23]} Nbd7 {[%emt 1:23:42]} 12. h4 {[%emt 0:00:17]} Nb6 {[%emt 0:00:00]} 13. Bg5 {[%emt 0:02:17]} Nc4 {[%emt 0:00:00]} 14. Qf4 {[%emt 0:01:31]} Nh5 {[%emt 0:00:00]} 15. Qe4 {[%emt 0:02:23]} g6 {[%emt 0:00:00]} 16. Bxc4 {[%emt 0:10:30]} bxc4 {[%emt 0:00:00]} 17. Qxc6 {[%emt 0:00:42]} Bd7 {[%emt 0:00:00]} 18. Qa6 {[%emt 0:05:06]} Bc8 {[%emt 0:00:00]} 19. Qxc4 {[%emt 0:01:39]} Be6 {[%emt 0:00:00]} 20. d5 {[%emt 0:00:37]} Rc8 {[%emt 0:00:00]} 21. Qd4 {[%emt 0:00:44]} Bd7 {[%emt 0:00:00]} 22. Ne4 {[%emt 0:01:54]} f6 {[%emt 0:00:00]} 23. Bd2 {[%emt 0:01:00]} Bf8 {[%emt 0:00:00]} 24. Bc3 {[%emt 0:00:19]} Bg7 {[%emt 0:00:00]} 25. Nxd6 {[%emt 0:11:16]} f5 {[%emt 0:00:00]} 26. Qxa7 {[%emt 0:03:13]} Rc7 {[%emt 0:00:00]} 27. Qb6 {[%emt 0:02:44]} Rxc3 {[%emt 0:00:00]} 28. Qxd8 {[%emt 0:00:36]} Rxd8 {[%emt 0:00:00]} 29. bxc3 {[%emt 0:00:28]} Rb8+ {[%emt 0:00:20]} 30. Kc1 {[%emt 0:00:12]} Bxc3 {[%emt 0:01:33]} 31. Rd3 {[%emt 0:00:34]} Bb4 {[%emt 0:01:48]} 32. Nc4 {[%emt 0:03:13]} Bb5 {[%emt 0:00:55]} 33. Nfe5 {[%emt 0:00:35]} Nf4 {[%emt 0:01:38]} 34. Rb3 {[%emt 0:01:11]} Ne2+ {[%emt 0:05:16]} 35. Kb1 {[%emt 0:03:03]} Nc3+ {[%emt 0:00:00]} 36. Kb2 {[%emt 0:00:27]} Nxd5 {[%emt 0:00:00]} 37. Rd1 {[%emt 0:01:10]} Nc3 {[%emt 0:00:31]} 1-0

[Event "17th Memorial Lezcano Montalvo 2025"]
[Site "Gran Canaria"]
[Date "2025.04.15"]
[Round "4.28"]
[White "Bangiev, Katharina"]
[Black "Halldorsson, Halldor"]
[Result "0-1"]
[Annotator "RC"]
[ECO "B70"]
[WhiteElo "1848"]
[BlackElo "2103"]
[PlyCount "68"]
[EventDate "2025.04.13"]
[EventType "swiss"]
[EventCountry "ESP"]
[SourceTitle "playchess.com"]
[Source "ChessBase"]
[SourceQuality "1"]
[TimeControl "5400+30"]

1. e4 {[%emt 0:02:49]} c5 {[%emt 0:00:15]} 2. Nf3 {[%emt 0:00:09]} g6 {[%emt 0:00:16]} 3. d4 {[%emt 0:00:20]} cxd4 {[%emt 0:00:12]} 4. Nxd4 {[%emt 0:00:29]} Nc6 {[%emt 0:00:19]} 5. g3 {[%emt 0:00:49]} Bg7 {[%emt 0:01:43]} 6. Ne2 {[%emt 0:01:02]} Nf6 {[%emt 0:02:08]} 7. Bg2 {[%emt 0:00:09]} d6 {[%emt 0:02:32]} 8. h3 {[%emt 0:01:03]} Bd7 {[%emt 0:01:02]} 9. Nbc3 {[%emt 0:00:47]} Rb8 {[%emt 0:03:31]} 10. a4 {[%emt 0:01:47]} O-O {[%emt 0:01:06]} 11. O-O {[%emt 0:00:08]} Nb4 {[%emt 0:04:13]} 12. Be3 {[%emt 0:03:11]} a5 {[%emt 0:02:25]} 13. f4 {[%emt 0:07:31]} Qc8 {[%emt 0:02:38]} 14. Kh2 {[%emt 0:01:13]} Bc6 {[%emt 0:03:31]} 15. Nd4 {[%emt 0:11:43]} e5 {[%emt 0:01:38]} 16. Nxc6 {[%emt 0:04:48]} Qxc6 {[%emt 0:00:17]} 17. Qd2 {[%emt 0:04:57]} Rbd8 {[%emt 0:02:20]} 18. Qf2 {[%emt 0:02:35]} exf4 {[%emt 0:03:42]} 19. Bxf4 {[%emt 0:04:03]} Nh5 {[%emt 0:03:26]} 20. e5 {[%emt 0:11:59]} d5 {[%emt 0:05:17]} 21. Rae1 {[%emt 0:06:32]} Qc4 {[%emt 0:02:47]} 22. Bg5 {[%emt 0:04:13]} Rde8 {[%emt 0:00:40]} 23. Bf6 {[%emt 0:04:57]} Bh6 {[%emt 0:03:14]} 24. Rd1 {[%emt 0:02:52]} Nxf6 {[%emt 0:01:34]} 25. exf6 {[%emt 0:00:26]} Be3 {[%emt 0:01:06]} 26. Qf3 {[%emt 0:00:32]} d4 {[%emt 0:01:04]} 27. Nd5 {[%emt 0:01:55]} Nxd5 {[%emt 0:01:27]} 28. Qxd5 {[%emt 0:00:10]} Qxc2 {[%emt 0:00:15]} 29. Qb5 {[%emt 0:05:56]} h5 {[%emt 0:02:13]} 30. Kh1 {[%emt 0:02:51]} Qc7 {[%emt 0:01:12]} 31. Rf3 {[%emt 0:04:14]} Re5 {[%emt 0:01:41]} 32. Qe2 {[%emt 0:02:16]} h4 {[%emt 0:04:28]} 33. g4 {[%emt 0:01:18]} Bg1 {[%emt 0:01:17]} 34. Qd2 {[%emt 0:00:48]} Re1 {[%emt 0:00:18]} 0-1

[Event "17th Memorial Lezcano Montalvo 2025"]
[Site "Gran Canaria"]
[Date "2025.04.15"]
[Round "4.29"]
[White "Blanco Garcia Bajo, David"]
[Black "Pace, Gabriele"]
[Result "1-0"]
[Annotator "RC"]
[ECO "B00"]
[WhiteElo "2098"]
[BlackElo "1895"]
[PlyCount "83"]
[EventDate "2025.04.13"]
[EventType "swiss"]
[EventCountry "ESP"]
[SourceTitle "playchess.com"]
[Source "ChessBase"]
[SourceQuality "1"]
[TimeControl "5400+30"]

1. e4 {[%emt 0:00:03]} e6 {[%emt 0:00:05]} 2. d4 {[%emt 0:00:06]} b6 {[%emt 0:00:01]} 3. Nf3 {[%emt 0:00:18]} Bb7 {[%emt 0:00:02]} 4. Bd3 {[%emt 0:00:13]} d5 {[%emt 0:00:50]} 5. e5 {[%emt 0:01:00]} c5 {[%emt 0:00:29]} 6. c3 {[%emt 0:00:50]} Ne7 {[%emt 0:01:11]} 7. h4 {[%emt 0:08:32]} Nbc6 {[%emt 0:06:18]} 8. Na3 {[%emt 0:11:12]} a5 {[%emt 0:06:45]} 9. Nb5 {[%emt 0:09:22]} Nc8 {[%emt 0:00:10]} 10. Ng5 {[%emt 0:00:53]} Qd7 {[%emt 0:06:37]} 11. Nxh7 {[%emt 0:08:24]} Ba6 {[%emt 0:07:35]} 12. Nxf8 {[%emt 0:21:10]} Kxf8 {[%emt 0:00:03]} 13. Na3 {[%emt 0:02:00]} Bxd3 {[%emt 0:11:25]} 14. Qxd3 {[%emt 0:00:12]} cxd4 {[%emt 0:09:21]} 15. cxd4 {[%emt 0:00:38]} Nb4 {[%emt 0:00:41]} 16. Qe2 {[%emt 0:00:39]} Ne7 {[%emt 0:00:34]} 17. g4 {[%emt 0:03:00]} Nec6 {[%emt 0:02:53]} 18. Be3 {[%emt 0:02:51]} Qe7 {[%emt 0:01:09]} 19. h5 {[%emt 0:01:57]} Qd7 {[%emt 0:07:43]} 20. Kd2 {[%emt 0:27:10]} Ke7 {[%emt 0:05:04]} 21. Nb5 {[%emt 0:00:00]} Rac8 {[%emt 0:02:38]} 22. Rhc1 {[%emt 0:00:00]} Na7 {[%emt 0:03:49]} 23. Nc3 {[%emt 0:00:00]} Nbc6 {[%emt 0:00:41]} 24. g5 {[%emt 0:00:00]} b5 {[%emt 0:07:15]} 25. g6 {[%emt 0:00:00]} Nxe5 {[%emt 0:01:59]} 26. Bg5+ {[%emt 0:00:00]} f6 {[%emt 0:00:02]} 27. Qxe5 {[%emt 0:00:00]} fxg5 {[%emt 0:00:44]} 28. Qxg7+ {[%emt 0:00:00]} Kd6 {[%emt 0:18:26]} 29. Qe5+ {[%emt 0:04:30]} Kc6 {[%emt 0:00:00]} 30. Na4+ {[%emt 0:00:00]} Kb7 {[%emt 0:00:00]} 31. Nc5+ {[%emt 0:00:00]} Rxc5 {[%emt 0:00:00]} 32. Qxh8 {[%emt 0:00:00]} Rxc1 {[%emt 0:00:00]} 33. Rxc1 {[%emt 0:00:00]} Qd6 {[%emt 0:00:00]} 34. Qg7+ {[%emt 0:00:00]} Ka6 {[%emt 0:00:00]} 35. Qc7 {[%emt 0:00:00]} Qb4+ {[%emt 0:00:00]} 36. Qc3 {[%emt 0:00:00]} Qf8 {[%emt 0:00:00]} 37. Qe3 {[%emt 0:00:00]} e5 {[%emt 0:00:00]} 38. Qxe5 {[%emt 0:00:00]} Qxf2+ {[%emt 0:00:00]} 39. Kd3 {[%emt 0:00:00]} Qf3+ {[%emt 0:00:00]} 40. Kc2 {[%emt 0:00:00]} Nc6 {[%emt 0:00:00]} 41. Qe6 {[%emt 0:00:00]} Kb7 {[%emt 0:00:00]} 42. Qf7+ {[%emt 0:00:00]} 1-0

[Event "17th Memorial Lezcano Montalvo 2025"]
[Site "Gran Canaria"]
[Date "2025.04.15"]
[Round "4.30"]
[White "Roca Marrero, Fernando"]
[Black "Hu, Jiani"]
[Result "0-1"]
[Annotator "RC"]
[ECO "A48"]
[WhiteElo "1617"]
[BlackElo "2091"]
[PlyCount "42"]
[EventDate "2025.04.13"]
[EventType "swiss"]
[EventCountry "ESP"]
[SourceTitle "playchess.com"]
[Source "ChessBase"]
[SourceQuality "1"]
[TimeControl "5400+30"]

1. d4 {[%emt 0:00:19]} Nf6 {[%emt 0:00:11]} 2. Nf3 {[%emt 1:31:11]} g6 {[%emt 1:31:19]} 3. c3 {[%emt 0:00:00]} Bg7 {[%emt 0:00:00]} 4. Nbd2 {[%emt 0:00:00]} d5 {[%emt 0:00:00]} 5. h3 {[%emt 0:00:00]} O-O {[%emt 0:00:00]} 6. e3 {[%emt 0:00:00]} b6 {[%emt 0:00:00]} 7. Bd3 {[%emt 0:00:00]} Bb7 {[%emt 0:00:00]} 8. O-O {[%emt 0:00:00]} Nbd7 {[%emt 0:00:00]} 9. Re1 {[%emt 0:00:00]} c5 {[%emt 0:00:00]} 10. Qc2 {[%emt 0:00:00]} Rc8 {[%emt 0:00:00]} 11. a4 {[%emt 0:00:00]} Qc7 {[%emt 0:00:00]} 12. a5 {[%emt 0:00:00]} Rfd8 {[%emt 0:00:00]} 13. Nf1 {[%emt 0:00:00]} e5 {[%emt 0:00:00]} 14. axb6 {[%emt 0:00:00]} axb6 {[%emt 0:00:00]} 15. Ba6 {[%emt 0:00:00]} Ra8 {[%emt 0:00:00]} 16. dxe5 {[%emt 0:00:00]} Nxe5 {[%emt 0:00:00]} 17. Nxe5 {[%emt 0:00:00]} Qxe5 {[%emt 0:00:00]} 18. f4 {[%emt 0:00:00]} Qc7 {[%emt 0:00:00]} 19. f5 {[%emt 0:00:00]} Bxa6 {[%emt 0:00:00]} 20. fxg6 {[%emt 0:00:00]} hxg6 {[%emt 0:00:00]} 21. Nh2 {[%emt 0:00:09]} Bd3 {[%emt 0:00:00]} 0-1

[Event "17th Memorial Lezcano Montalvo 2025"]
[Site "Gran Canaria"]
[Date "2025.04.15"]
[Round "4.31"]
[White "Cruz Ramirez, Nauzet"]
[Black "Oramas Medina, Miguel"]
[Result "1-0"]
[Annotator "NA RC"]
[ECO "D18"]
[WhiteElo "2076"]
[BlackElo "1796"]
[PlyCount "57"]
[EventDate "2025.04.13"]
[EventType "swiss"]
[EventCountry "ESP"]
[SourceTitle "playchess.com"]
[Source "ChessBase"]
[SourceQuality "1"]
[TimeControl "5400+30"]

1. d4 {[%emt 0:03:13]} d5 {[%emt 0:00:05]} 2. c4 {[%emt 0:00:09]} c6 {[%emt 0:00:06]} 3. Nc3 {[%emt 0:00:19]} Nf6 {[%emt 0:00:06]} 4. Nf3 {[%emt 0:00:06]} dxc4 {[%emt 0:00:09]} 5. a4 {[%emt 0:00:56]} Bf5 {[%emt 0:00:07]} 6. e3 {[%emt 0:00:32]} e6 {[%emt 0:00:09]} 7. Bxc4 {[%emt 0:00:05]} Bb4 {[%emt 0:00:14]} 8. O-O {[%emt 0:00:08]} O-O {[%emt 0:00:10]} 9. Bd3 {[%emt 0:04:25]} Bxd3 {[%emt 0:10:50]} 10. Qxd3 {[%emt 0:00:07]} c5 {[%emt 0:04:25]} 11. Na2 {[%emt 0:05:49]} Qb6 {[%emt 0:13:21]} 12. Nxb4 {[%emt 0:00:09]} cxb4 {[%emt 0:02:43]} 13. a5 {[%emt 0:09:10]} Qa6 {[%emt 0:04:56]} 14. Qb3 {[%emt 0:04:47]} b6 {[%emt 0:12:42]} 15. Qxb4 {[%emt 0:01:51]} Nc6 {[%emt 0:00:11]} 16. Qa4 {[%emt 0:02:23]} bxa5 {[%emt 0:00:30]} 17. Bd2 {[%emt 0:08:21]} Rfb8 {[%emt 0:03:06]} 18. Rfc1 {[%emt 0:01:07]} Ne7 {[%emt 0:01:43]} 19. b4 {[%emt 0:01:27]} Rb5 {[%emt 0:04:24]} 20. bxa5 {[%emt 0:19:36]} Rab8 {[%emt 0:06:49]} 21. Qc4 {[%emt 0:01:33]} Ne4 {[%emt 0:02:40]} 22. Be1 {[%emt 0:00:15]} Qb7 {[%emt 0:05:12]} 23. a6 {[%emt 0:02:21]} Qb6 {[%emt 0:02:35]} 24. Ne5 {[%emt 0:01:12]} Qd6 {[%emt 0:02:46]} 25. Qc7 {[%emt 0:11:15]} Qxc7 {[%emt 0:04:19]} 26. Rxc7 {[%emt 0:00:49]} Nc8 {[%emt 0:00:24]} 27. Nc6 {[%emt 0:01:50]} Ra8 {[%emt 0:00:12]} 28. Rxc8+ {[%emt 0:00:06]} Rxc8 {[%emt 0:00:18]} 29. Ne7+ {[%emt 0:20:59]} 1-0